Workbook

Sheet Sheet1
A1: ACTUAL EXPENSES FOR 2025 | P1: TOTALS
C2: JAN | D2: FEB | E2: MAR | F2: APRIL | G2: MAY | H2: JUNE | I2: JULY | J2: AUG | K2: SEPT | L2: OCT | M2: NOV | N2: DEC | O2: TOTAL | P2: YEAR TO DATE
A3: OFFICE SUPPLIES | B3: OFFICE EXPENSE
A4: 949-887-3999 | B4: VERIZON | H4: 1000 | O4: =SUM(C4:N4) -> 1000 | P4: INC
A5: ADVERTISING | B5: LOOPNET | F5: 1188 | O5: 1188 | P5: INC
B6: GENERAL OFFICE SUPPLIES | F6: 164.7 | O6: 164.7
A7: STAMPS | B7: POSTMASTER | J7: 156 | O7: 156
B8: MICROSOFT | K8: 99.99 | O8: 99.99
B9: INTERNET EQUIPMENT | O9: 0
A10: INTERNET SWITCH | B10: BEST BUY | O10: 0
A11: SERVAILANCE EQUIPMENT | B11: UBIQUITI | O11: 0
B12: CAMERA EQUIPMENT | K12: 450.24 | L12: 409 | O12: 859.24
A13: KEY CHAINS | B13: 4IMPRINT | O13: 0
B14: ESET | N14: 119.98 | O14: 119.98
A15: DISCOUNT CLEANING PRO | B15: CARPET CLEANER | O15: 0
B16: MISCELLANIES | C16: 75.3 | D16: 118.51 | F16: 89.3 | I16: 89.59 | K16: 288.65 | M16: 70.17 | N16: 59.2 | O16: 790.72
B17: RING | N17: 49.99 | O17: 49.99
B18: BANK FEE | C18: 27 | O18: 27
A19: CHECKS | B19: bank check charge | O19: 0
B20: COSTCO MEMBERSHIP | K20: 130 | O20: 130
A21: UTILITIES | B21: UTILITIES | O21: 0
B22: CR&R/SOLAG | D22: 1000 | F22: 2000 | J22: 3000 | O22: 6000
B23: COX CABLE | E23: 2500 | N23: 1000 | O23: 3500
B24: EL TORO WATER | C24: 1500 | G24: 2000 | I24: 3000 | N24: 2500 | O24: 9000
B25: GAS CO | O25: 0
B26: SO. CALIF. EDISON | C26: 3000 | D26: 4000 | E26: 4000 | F26: 4000 | G26: 4000 | H26: 5000 | I26: 7000 | J26: 7000 | K26: 7200 | L26: 9000 | M26: 5000 | N26: 10000 | O26: 69200
A27: OFFICE EQUIP. & SUPPLIES | B27: OFFICE EXPENSE | O27: 0
A28: FOOD & ENTER. | B28: FOOD & ENTERTAINMENT | E28: 18 | F28: 158.12 | K28: 329.61 | N28: 1000 | O28: 1505.73
B29: SMART & FINAL | D29: 106.53 | E29: 117.57 | H29: 119.44 | J29: 119.44 | M29: 162.62 | O29: 625.6
B30: PRICE COSTCO TOTAL | D30: 939.07 | E30: 960.2 | G30: 585.1 | H30: 851.34 | J30: 609.88 | K30: 716.57 | L30: 828.05 | M30: 547.13 | N30: 856.5 | O30: 6893.84
B31: QUILL CORP | O31: 0
B32: WALMART | H32: 306.41 | O32: 306.41
A33: OFFICE MAINT. & IMPROVE. | B33: MATERIALS | O33: 0
B34: 1000bulbs.com | O34: 0 | P34: INC
B35: 3 DAY BLINDS | O35: 0
B36: AC PRO SUPPLIES | C36: 30 | L36: 170 | O36: 200 | P36: INC
A37: MATERIALS AC | B37: AMERICAN DISTRIBUTOR | O37: 0
B38: CALIF. CARPET | H38: 2287.38 | O38: 2287.38 | P38: INC
A39: DR. CARPET, LLC | B39: CARPET CLEANER | C39: 600 | H39: 1150 | O39: 1750 | P39: 83-2310366 | Q39: 4 SANDSTONE, IRVINE, CA 92604
B40: GANAHL LUMBER | O40: 0
A41: PAINT | B41: DUNN EDWARD'S | D41: 212.39 | F41: 503.44 | G41: 145.38 | K41: 312.3 | L41: 17.15 | O41: 1190.66 | P41: INC
A42: CEMENT GUTTER | B42: EVEREVE BUILDING | O42: 0 | P42: INC
B43: EXPRESS PIPE AND SUPPLIES | O43: 0
A44: AC FILTERS | B44: FILTERTRON | O44: 0
B45: GENERAL HARDWARE | H45: 25.56 | K45: 13.66 | O45: 39.22
A46: TOWELS | B46: ZORO | O46: 0 | P46: INC
B47: GRAINGER | O47: 0 | P47: INC
A48: MATERIALS | B48: HD SUPLIES | O48: 0 | P48: INC
B49: HOME DEPOT | C49: 91.4 | D49: 753.66 | E49: 243 | F49: 531.79 | G49: 567.92 | H49: 576 | I49: 416.49 | K49: 98.78 | L49: 137.81 | M49: 96.76 | N49: 154.53 | O49: 3668.14 | P49: INC
B50: MATERIALS | I50: 95.63 | K50: 133.96 | O50: 229.59
B51: MV BREAKER | O51: 0
A52: WATER FILTERS | B52: SECURITY PLUMBING | O52: 0
B53: TOTAL HEAT | O53: 0 | P53: INC
A54: DOORS | B54: THOMPSON DOORS | O54: 0 | P54: INC
A55: MATERIALS AC | B55: USAIRCONDITIONING | O55: 0 | P55: INC
B56: WALTER WHOLESALE ELEC. | D56: 135.64 | O56: 135.64
C57: JAN | D57: FEB | E57: MAR | F57: APRIL | G57: MAY | H57: JUNE | I57: JULY | J57: AUG | K57: SEPT | L57: OCT | M57: NOV | N57: DEC | O57: 0
A58: OFFICE MAINT. & IMPROVE. | B58: SIMI-PROFESSIONAL SERVICES | O58: 0 | P58: -
B59: ACE | E59: 150 | O59: 150 | P59: INC
A60: WINDOWS | B60: ALANS CLEANING | O60: 0
A61: MAINTENANCE | B61: ALWAYS AIR AND HEAT, INC | I61: 1010 | N61: 1300 | O61: 2310 | P61: INC
A62: PEST CONTROL | B62: ALLURE PEST | O62: 0 | P62: INC | Q62: HEATHER
A63: AC MAINTENANCE, ART AC | B63: ARTURO RANGEL | K63: 120 | O63: 120 | P63: 572-83-6149 | Q63: 22622 ROCKFORD DR., ,LAKE FOREST, CA 92630
A64: TERMITE GUY | O64: 0
A65: ROB 714-633-7440 | B65: CALIF CUSION & CARPET | O65: 0 | P65: INC
B66: CARLOS, GLASS GUY | O66: 0
A67: PHONE WIRING | B67: CWC | O67: 0
A68: CARPET CLEANING | B68: DAVID TROMP | O68: =SUM(C68:N68) -> 0 | P68: 545-61-4547 | Q68: 8272 POLK CIRCLE, HUNTINGTON BEACH, CA 92646
B69: discount lift rental | O69: 0 | P69: INC
A70: FIRE EXTINGUISHER SERVICE | B70: ELEMENT | E70: 165 | O70: 165
A71: BACK FLOW CHECK | B71: FIRE SAFETY FIRST | H71: 50 | O71: 50
A72: LANDSCAPER | B72: JUAN M. AVELAR | C72: 1725 | D72: PD | E72: PD | F72: 1740 | G72: PD | H72: 100 | I72: 1755 | J72: PD | K72: PD | L72: 1725 | M72: PD | N72: 500 | O72: 7545 | P72: 36-4936954 | Q72: 1822 WEST 15th STREET,SANTA ANA, CA 92706
B73: KUSTOM LOCKSMITH | O73: 0
A74: LED LIGHTS | B74: LIGHTING SUPPLY, INC. | O74: 0
B75: HERC RENTALS | O75: 0 | P75: INC
A76: CLEANING | B76: THV HOLDINGS, MAIDPRO | O76: 0 | P76: INC
A77: CLEANING | B77: MAIDPRO | C77: 2000 | D77: 2000 | E77: 2000 | F77: 2000 | G77: 2000 | H77: 2000 | I77: 2000 | J77: 2000 | K77: 2000 | L77: 2000 | M77: 2000 | N77: 2000 | O77: 24000
B78: NORMA RAMIREZ | O78: 0 | P78: 626-05-0736 | Q78: 21732 ALVAREZ, MISSION VIEJO, CA 92691
A79: CARPETS & RESTERATION | B79: OVERALL CARPET | O79: 0 | P79: 33-0987308 | Q79: 9353 BOLSA AVE., STE K#J54, WESTMINSTER, CA 92683
A80: LIGHT PANELS | B80: PARAGON PLASTICS | O80: 0
A81: TRUCK DOOR | B81: R & S OVERHEAD DOOR | O81: 0 | P81: INC
B82: RDM ROOFING | O82: 0 | P82: 33-0827707 | Q82: 6606 FM 1488, SUITE148-333 MAGNOLIA, TX 77354
B83: ACCURATE PEST CONT | O83: 0 | P83: INC
A84: TREE INSPECTION | B84: MONARCH ENVIRONMENTAL | O84: 0 | P84: INC
A85: DOOR REPAIR | B85: VORTEX | O85: 0 | P85: INC
A86: LIFT | B86: UNITED RENTALS | F86: 1288.08 | G86: 759.5 | O86: 2047.58 | P86: INC
B87: RSM LOCK AND SAFE | O87: 0 | P87: 501-86-1836 | Q87: 14 SAN RICARDO, RSM, CA 92688
B88: TOWING | O88: 0 | P88: INC
O89: 0
A90: JANITORIAL | O90: 0
A91: GENERAL | B91: LABORERS | O91: 0
A92: FILTERS | B92: ANDY RIVERO | O92: 0
A93: WIREING | B93: A-PRO SECURITY -GREG | H93: 800 | O93: 800 | P93: INC
A94: CARPET CLEANING | B94: MARC | O94: 0
B95: DANIEL CHAMORRO | O95: 0
A96: SILK PLANT CLEANING | B96: DENISE NIERADKA | O96: 0
A97: LABOR | B97: PHIL | H97: 550 | O97: 550
A98: AC cleaning | B98: JOSH GODICH | C98: 300 | O98: 300 | P98: 618-60-8208 | Q98: 39134 ARIEL COURT, MENIFEE, CA 92586
A99: COMPUTER REPAIR | B99: LEVENTE | E99: 100 | F99: 200 | I99: 200 | K99: 100 | N99: 200 | O99: 800 | P99: inc
A100: CARPET INSTALLER | B100: LOUISE | G100: 300 | N100: 200 | O100: 500
B101: MISC. LABOR | E101: 1100 | F101: 150 | H101: 400 | I101: 132.91 | J101: 950 | L101: 300 | M101: 180 | O101: 3212.91
B102: PAULA XMAS GIFT | O102: 0
B103: TOM | C103: 250 | D103: 100 | E103: 100 | O103: 450
B104: POST MAN TYLER OR TREVER | O104: 0
B105: ROGELIO MARTINEZ GALVAN | E105: 5050 | F105: 1600 | G105: 200 | J105: 1050 | K105: 500 | M105: 1700 | N105: 900 | O105: 11000 | P105: 612-68-6421 | Q105: 1807 W. SALLIE LN. APT 2, ANAHEIM, CA 92804
A106: ROOF REPAIR | B106: RUSTY MCCATHY | O106: 0 | P106: INC
A107: CABELING | B107: STEVE | O107: 0
B108: TRASH MAN - CASH | O108: 0
A109: AC REPAIR | B109: VINCE AC | O109: 0
B110: PROFESSIONAL SERVICES | O110: 0
A111: BUILDING INSURANCE | B111: WESTERN UNITED | O111: 0 | P111: INC
A112: BUILDING INSURANCE | B112: the HARTFORD | D112: 12503 | O112: 12503 | P112: INC
A113: WORKERS COMP INSURANCE | B113: STATE FUND | O113: 0
B114: HR PRESCRIPTIONS | O114: 0
A115: ACCOUNTANT | B115: ADAM RIZVI CPA | D115: 3615 | O115: 3615
A116: REFERAL | B116: VOIT ERAL ESTATE | O116: 0
A117: lawyer - real estate | B117: DARREN G. SMITH | O117: 0 | P117: 33-0774180 | Q117: 260 Newport Center Drive, suite 100, Newport Beach, CA 92660
A118: ATTORNEY | B118: LONG & DELIS | O118: 0 | P118: 33-0103444
A119: lawler - labor | B119: BERGER HARRISON | O119: 0 | P119: INC
A120: LAWYER | B120: EDWARD INOUYE | O120: 0 | P120: 93-1199289 | Q120: 2601 MAIN STREET, SUITE 770, IRVINE CA 92614, PHONE 442-9999
A121: TAXES | B121: PAID TO | O121: 0
A122: FORM 3522 | B122: STATE FRANCHISE TAX | D122: 800 | O122: 800
A123: FORM 3536 LLC | B123: STATE FRANCHISE TAX | D123: 2500 | O123: 2500 | P123: FOR LLC
A124: PROPERTY TAXES | B124: OR CO TAX COLLECTOR | L124: 28221.22 | O124: 28221.22
A125: PERSONAL PROPERTY TAX | B125: OR CO TAX COLLECTOR | O125: 0
B126: CALIF SEC OF STATE | O126: 0
O127: 0
A128: PROPERTY TAX | B128: ROOKS COUNTY | N128: 67.16 | O128: 67.16
A129: DONATIONS | O129: 0
B130: OR. CO. POLICE DEPT | O130: 0
B131: SETTLEMENT PAYMENT | O131: 0
B132: ALSA DONATION | F132: 500 | O132: =SUM(C132:N132) -> 500
A133: MANAGEMENT EXPENSE | O133: 0
A134: PAYROLL | B134: BOB'S COMPENSATION | O134: 0 | P134: =SUM(O135:O151) -> 128289.42
A135: EMPLOYEE | B135: BOB GICK salary 8,670.00 | C135: 8670 | D135: 8670 | E135: 8670 | F135: 8670 | G135: 8670 | H135: 8670 | I135: 8670 | J135: 8670 | K135: 8670 | L135: 8670 | M135: 8670 | N135: 8670 | O135: 104040
B136: bob bonus | O136: 0
B137: PRESCRIPTIONS | D137: 669.21 | E137: 274.12 | F137: 317.07 | G137: 312.74 | H137: 323 | I137: 70.75 | O137: 1966.89
B138: MEDICAL EQUIPMENT | L138: 120.05 | O138: 120.05
B139: CMS MEDICARE | O139: 0 | P139: INC 170.10 per month for medacare, 2026 will be 164.90
B140: MEDICARE PART B | N140: 2220 | O140: 2220 | P140: INC 233.00 per month for medacare, 2026 will be 226.00
B141: BLUE SHIELD SUPPLIMENT F | C141: 1000 | E141: 1000 | G141: 1000 | I141: 1000 | L141: 1500 | O141: 5500
A142: SILVER SCRIPT | B142: DRUG D PLAN | E142: 500 | N142: 500 | O142: 1000 | P142: =SUM(O139:O142) -> 8720 | Q142: insurance
O143: 0
B144: GENERAL MEDICAL | O144: 0
O145: 0
B146: HARMONY DENISTRY | C146: 265 | G146: 2125 | K146: 265 | N146: 165 | O146: 2820 | P146: =SUM(O144:O146) -> 2820 | Q146: TOTAL MEDICAL
B147: NEUROSCIENCE, DR SHEN | O147: 0
A148: EYES | B148: MICHAEL GOLDMAN | O148: 0
A149: MEDICAL EXPENSE | B149: UROLOGY spec | O149: 0
A150: MEDICAL EXPENSE | B150: LAB CORP | O150: 0 | P150: =SUM(P134*0.0828) -> 10622.36398 | Q150: PART SHARE OF TAXES
A151: PART. SHARE 7.65% | B151: BOB'S IRS, USE .0828 | C151: 900 | E151: 1800 | G151: 1800 | H151: 900 | K151: 2500 | L151: 15 | M151: 1500 | N151: 1207.48 | O151: 10622.48 | P151: =SUM(P150-O151) -> -0.116024
C152: JAN | D152: FEB | E152: MAR | F152: APRIL | G152: MAY | H152: JUNE | I152: JULY | J152: AUG | K152: SEPT | L152: OCT | M152: NOV | N152: DEC | O152: TOTAL
O153: =SUM(O3:O151) -> 341614.12
B154: ACTUAL MONTHLY EXPENSES | C154: =SUM(C3:C151) -> 20433.7 | D154: 38123.01 | E154: 28747.89 | F154: 25100.5 | G154: 24465.64 | H154: 25109.13 | I154: 25440.37 | J154: 23555.32 | K154: 23928.76 | L154: 53113.28 | M154: 19926.68 | N154: 33669.84 | O154: =SUM(C154:N154) -> 341614.12
B155: PROJECTED MONTHLY EXPENSES | C155: 33000 | D155: 33000 | E155: 33000 | F155: 33000 | G155: 33000 | H155: 33000 | I155: 33000 | J155: 33000 | K155: 33000 | L155: 33000 | M155: 33000 | N155: 33000 | O155: =SUM(C155:N155) -> 396000
B156: ACCUMULATIVE DIFFERENCE | C156: =SUM(C154-C155) -> -12566.3 | D156: =SUM(D154+C156-D155) -> -7443.29 | E156: =SUM(E154+D156-E155) -> -11695.4 | F156: -19594.9 | G156: -28129.26 | H156: -36020.13 | I156: -43579.76 | J156: -53024.44 | K156: -62095.68 | L156: -41982.4 | M156: -55055.72 | N156: -54385.88
A158: 57,862/694,344 | B158: ACTUAL MONTHLY INCOME | C158: 56720 | D158: 46595 | E158: 59706 | F158: 51545 | G158: 50180 | H158: 52013 | I158: 49375 | J158: 47445 | K158: 55610 | L158: 49197 | M158: 53280 | N158: 46210 | O158: =SUM(C158:N158) -> 617876
B159: 95% of PROJECTED MONTHLY INCOME | C159: 54969 | D159: 54969 | E159: 54969 | F159: 54969 | G159: 54969 | H159: 54969 | I159: 54969 | J159: 54969 | K159: 54969 | L159: 54969 | M159: 54969 | N159: 54969 | O159: =SUM(C159:N159) -> 659628 | Q159: BALANCE DUE BOB
B160: ACCUMULATIVE TOTAL INCOME ABOVE 95% | C160: =SUM(C158-C159) -> 1751 | D160: =SUM(D158+C160-D159) -> -6623 | E160: =SUM(E158+D160-E159) -> -1886 | F160: -5310 | G160: -10099 | H160: -13055 | I160: -18649 | J160: -26173 | K160: -25532 | L160: -31304 | M160: -32993 | N160: -41752 | O160: =SUM(O158-O159) -> -41752 | P160: bob's bonus | Q160: =SUM(O160/2) -> -20876
C162: =SUM(C158-C154) -> 36286.3 | D162: 8471.99 | E162: 30958.11 | F162: 26444.5 | G162: 25714.36 | H162: 26903.87 | I162: 23934.63 | J162: 23889.68 | K162: 31681.24 | L162: -3916.28 | M162: 33353.32 | N162: 12540.16 | O162: =SUM(C162:N162) -> 276261.88
O163: -
A164: PARTNERS | B164: DISBURSEMENT | D164: mar-june | G164: JULY-OCT | K164: NOV,DEC, JAN, FEB | M164: EXTRA | O164: -
A165: 0.2 | B165: JUDY NELSON | D165: 10000 | G165: 10000 | K165: 10000 | M165: 25000 | O165: =SUM(C165:N165) -> 55000
A166: 0.2 | B166: CINDY GICK | D166: 10000 | G166: 10000 | K166: 10000 | M166: 25000 | O166: =SUM(C166:N166) -> 55000
A167: 0.2 | B167: PETER GICK | D167: 10000 | G167: 10000 | K167: 10000 | M167: 25000 | O167: =SUM(C167:N167) -> 55000
A168: 0.2119 | B168: BOB GICK | D168: 10595 | G168: 10595 | K168: 10595 | M168: 26488.5 | O168: =SUM(C168:N168) -> 58273.5
A169: 0.047 | B169: LAUREN SHERWIN | D169: 2351.25 | G169: 2351.25 | K169: 2351.25 | M169: 5878.12 | O169: 12931.87
A170: 0.047 | B170: ANDREW GICK | D170: 2351.25 | G170: 2351.25 | K170: 2351.25 | M170: 5878.12 | O170: 12931.87
A171: 0.047 | B171: SHANE GICK | D171: 2351.25 | G171: 2351.25 | K171: 2351.25 | M171: 5878.12 | O171: 12931.87
A172: 0.047 | B172: KRISTIN MECKALAVAGE | D172: 2351.25 | G172: 2351.25 | K172: 2351.25 | M172: 5878.12 | O172: 12931.87
A173: 1 | B173: TOTAL | D173: =SUM(D165:D172) -> 50000 | G173: =SUM(G165:G172) -> 50000 | K173: =SUM(K165:K172) -> 50000 | O173: =SUM(O165:O172) -> 275000.98 | P173: =SUM(O165:O172) -> 275000.98
L180: NOTES
L181: APRIL 2023 | M181: ASPHALT WORK
A182: 51537.54 | B182: CASH IN BANK TODAY 12-31-24 | L182: FEB 2025 | M182: BATTERY IN LIGHTS
A183: 1083 | B183: CHECKS FOR DEPOSIT | L183: FEB 2025 | M183: BATTERY IN SMOKE ALARMS
A184: 6577 | B184: CASH ON HAND | L184: FEB 2025 | M184: BATTERY IN EMERGANCY LIGHTS 11 total
A185: =SUM(A182:A184) -> 59197.54 | B185: TOTAL MONEY ON HAND | F185: SEPARATE INCOME FROM RENTS | L185: APRIL 2023 | M185: SPRAY FOR TERMITES
G186: CITATION | H186: 2021-02-22 | L186: APRIL 2023 | M186: CARPET CLEANING
G187: CITATION | H187: 2023-03-20
A188: NOTES FOR TAXES | B188: SECURITY DEPOSITS 12-31-2024 | C188: 49240 | D188: CORRECT | F188: 76.62 | G188: CITATION | H188: 2024-04-22
B189: SECURITY DEPOSITS 12-31-25 | C189: 48555 | G189: CITATION | H189: 2023-07-01
F190: 108.33 | G190: CITATION | H190: 2022-09-20
B191: CASH 12-31-2024 | C191: 57738 | D191: CORRECT | F191: 0.41 | G191: CITATION | H191: 2022-10-20
B192: INCOME | C192: =SUM(O158) -> 617876 | F192: 13.29 | G192: CITATION | H192: 2022-12-28
B193: SUB TOTAL | C193: =SUM(C191:C192) -> 675614 | G193: CITATION
B194: EXPENSES | C194: =SUM(O154) -> 341614.12 | F194: =SUM(F186:F193) -> 198.65 | G194: TOTAL FOR YEAR | I194: should be extra at end
B195: SUB TOTAL | C195: =SUM(C193-C194) -> 333999.88
B196: DISBURSEMENTS | C196: =SUM(O173) -> 275000.98
B197: SUB TOTAL | C197: =SUM(C195-C196) -> 58998.9
B198: CASH 12-31-2025 | C198: =SUM(A185) -> 59197.54 | D198: TOTAL MONEY ON HAND
B199: SUB TOTAL | C199: =SUM(C198-C197) -> 198.64
G203: 0

Sheet Sheet2

Sheet Sheet3
